fUST/lending_fUST_20260524
["ID","MTS","AMOUNT","RATE_DAILY","PERIOD"]
[422870047,1779553842000,-500.0,8.661e-05,2]
[422870056,1779553842000,-358.225268,8.661e-05,2]
[422870058,1779553842000,-500.0,8.661e-05,2]
[422870057,1779553842000,-358.225268,8.661e-05,2]
[422870059,1779553842000,-358.225268,8.661e-05,2]
[422870062,1779553842000,-161.743956,8.661e-05,2]
[422870060,1779553842000,-500.0,8.661e-05,2]
[422870061,1779553842000,-500.0,8.661e-05,2]
[422870063,1779553842000,-500.0,8.661e-05,2]
[422869993,1779553842000,-500.0,8.66e-05,2]
[422870046,1779553842000,-500.0,8.661e-05,2]
[422870037,1779553842000,-500.0,8.661e-05,2]
[422870064,1779553842000,-161.743956,8.661e-05,2]
[422870032,1779553842000,-500.0,8.661e-05,2]
[422870031,1779553842000,-500.0,8.661e-05,2]
[422870008,1779553842000,-500.0,8.661e-05,2]
[422870010,1779553842000,-500.0,8.661e-05,2]
[422869995,1779553842000,-500.0,8.66e-05,2]
[422870000,1779553842000,-500.0,8.66e-05,2]
[422870012,1779553842000,-606.36228024,8.661e-05,2]
[422870001,1779553842000,-500.0,8.66e-05,2]
[422869997,1779553842000,-500.0,8.66e-05,2]
[422870003,1779553842000,-500.0,8.66e-05,2]
[422869999,1779553842000,-500.0,8.66e-05,2]
[422870004,1779553842000,-1180.6854,8.66e-05,2]
[422869998,1779553842000,-500.34368594,8.66e-05,2]
[422870014,1779553842000,-500.0,8.661e-05,2]
[422870024,1779553842000,-500.0,8.661e-05,2]
[422870006,1779553842000,-509.26,8.661e-05,2]
[422870016,1779553842000,-500.0,8.661e-05,2]
[422870034,1779553842000,-500.0,8.661e-05,2]
[422870027,1779553842000,-541.84,8.661e-05,2]
[422870035,1779553842000,-554.74,8.661e-05,2]
[422870028,1779553842000,-500.0,8.661e-05,2]
[422870025,1779553842000,-635.98,8.661e-05,2]
[422870018,1779553842000,-500.0,8.661e-05,2]
[422870021,1779553842000,-500.0,8.661e-05,2]
[422870020,1779553842000,-500.0,8.661e-05,2]
[422870022,1779553842000,-500.0,8.661e-05,2]
[422870019,1779553842000,-500.0,8.661e-05,2]
[422870017,1779553842000,-500.0,8.661e-05,2]
[422870015,1779553842000,-500.0,8.661e-05,2]
[422870026,1779553842000,-500.0,8.661e-05,2]
[422870023,1779553842000,-637.39,8.661e-05,2]
[422870123,1779553843000,-501.1687762,8.76e-05,2]
[422870113,1779553843000,-500.0,8.76e-05,2]
[422870111,1779553843000,-227.344388,8.661e-05,2]
[422870109,1779553843000,-227.344388,8.661e-05,2]
[422870105,1779553843000,-500.0,8.661e-05,2]
[422870102,1779553843000,-215.00241,8.661e-05,2]
[422870108,1779553843000,-227.344388,8.661e-05,2]
[422870099,1779553843000,-215.00241,8.661e-05,2]
[422870106,1779553843000,-500.0,8.661e-05,2]
[422870104,1779553843000,-500.0,8.661e-05,2]
[422870103,1779553843000,-215.00241,8.661e-05,2]
[422870107,1779553843000,-500.0,8.661e-05,2]
[422870112,1779553843000,-992.383852,8.717e-05,2]
[422870118,1779553843000,-500.0,8.76e-05,2]
[422870110,1779553843000,-227.344388,8.661e-05,2]
[422870121,1779553843000,-500.0,8.76e-05,2]
[422870120,1779553843000,-501.43380511,8.76e-05,2]
[422870116,1779553843000,-500.0,8.76e-05,2]
[422870115,1779553843000,-500.0,8.76e-05,2]
[422870114,1779553843000,-500.0,8.76e-05,2]
[422870119,1779553843000,-501.13424004,8.76e-05,2]
[422870117,1779553843000,-500.0,8.76e-05,2]
[422870128,1779553843000,-330.649017,8.76e-05,2]
[422870126,1779553843000,-500.0,8.76e-05,2]
[422870124,1779553843000,-519.79984762,8.76e-05,2]
[422870125,1779553843000,-500.0,8.76e-05,2]
[422870100,1779553843000,-500.0,8.661e-05,2]
[422870122,1779553843000,-500.0,8.76e-05,2]
[422870101,1779553843000,-215.00241,8.661e-05,2]
[422870076,1779553843000,-500.0,8.661e-05,2]
[422870092,1779553843000,-500.0,8.661e-05,2]
[422870065,1779553843000,-161.743956,8.661e-05,2]
[422870130,1779553843000,-330.649017,8.76e-05,2]
[422870066,1779553843000,-500.0,8.661e-05,2]
[422870067,1779553843000,-161.743956,8.661e-05,2]
[422870069,1779553843000,-500.0,8.661e-05,2]
[422870070,1779553843000,-500.0,8.661e-05,2]
[422870080,1779553843000,-244.681792,8.661e-05,2]
[422870071,1779553843000,-500.0,8.661e-05,2]
[422870081,1779553843000,-500.0,8.661e-05,2]
[422870077,1779553843000,-500.0,8.661e-05,2]
[422870078,1779553843000,-244.681792,8.661e-05,2]
[422870074,1779553843000,-443.680814,8.661e-05,2]
[422870072,1779553843000,-251.240471,8.661e-05,2]
[422870098,1779553843000,-500.0,8.661e-05,2]
[422870073,1779553843000,-500.0,8.661e-05,2]
[422870079,1779553843000,-244.681792,8.661e-05,2]
[422870082,1779553843000,-244.681792,8.661e-05,2]
[422870083,1779553843000,-500.0,8.661e-05,2]
[422870084,1779553843000,-151.0,8.661e-05,2]
[422870089,1779553843000,-431.823827,8.661e-05,2]
[422870088,1779553843000,-431.823827,8.661e-05,2]
[422870094,1779553843000,-151.0,8.661e-05,2]
[422870086,1779553843000,-151.0,8.661e-05,2]
[422870087,1779553843000,-190.184914,8.661e-05,2]
[422870085,1779553843000,-151.0,8.661e-05,2]
[422870091,1779553843000,-431.823827,8.661e-05,2]
[422870090,1779553843000,-431.823827,8.661e-05,2]
[422870097,1779553843000,-151.0,8.661e-05,2]
[422870075,1779553843000,-500.0,8.661e-05,2]
[422870136,1779553843000,-500.0,8.767e-05,2]
[422870068,1779553843000,-500.0,8.661e-05,2]
[422870135,1779553843000,-500.0,8.763e-05,2]
[422870165,1779553843000,-500.0,8.933e-05,2]
[422870166,1779553843000,-500.0,8.933e-05,2]
[422870169,1779553843000,-500.0,8.933e-05,2]
[422870164,1779553843000,-500.0,8.933e-05,2]
[422870168,1779553843000,-1360.22,8.933e-05,2]
[422870167,1779553843000,-500.0,8.933e-05,2]
[422870171,1779553843000,-500.0,8.933e-05,2]
[422870170,1779553843000,-934.56,8.933e-05,2]
[422870173,1779553843000,-7855.17,8.933e-05,2]
[422870180,1779553843000,-500.0,8.934e-05,2]
[422870184,1779553843000,-500.0,8.934e-05,2]
[422870182,1779553843000,-500.0,8.934e-05,2]
[422870172,1779553843000,-500.0,8.933e-05,2]
[422870163,1779553843000,-500.0,8.933e-05,2]
[422870181,1779553843000,-500.0,8.934e-05,2]
[422870175,1779553843000,-1614.38,8.933e-05,2]
[422870174,1779553843000,-584.08,8.933e-05,2]
[422870176,1779553843000,-500.0,8.933e-05,2]
[422870178,1779553843000,-1351.15,8.933e-05,2]
[422870177,1779553843000,-500.0,8.933e-05,2]
[422870187,1779553843000,-500.0,8.934e-05,2]
[422870185,1779553843000,-500.0,8.934e-05,2]
[422870186,1779553843000,-500.0,8.934e-05,2]
[422870188,1779553843000,-500.0,8.934e-05,2]
[422870189,1779553843000,-883.02,8.934e-05,2]
[422870191,1779553843000,-500.0,8.934e-05,2]
[422870190,1779553843000,-500.0,8.934e-05,2]
[422870127,1779553843000,-330.649017,8.76e-05,2]
[422870179,1779553843000,-500.0,8.933e-05,2]
[422870162,1779553843000,-500.0,8.933e-05,2]
[422870183,1779553843000,-500.0,8.934e-05,2]
[422870151,1779553843000,-500.0,8.835e-05,2]
[422870161,1779553843000,-500.0,8.933e-05,2]
[422870132,1779553843000,-453.054,8.76e-05,2]
[422870131,1779553843000,-453.054,8.76e-05,2]
[422870133,1779553843000,-453.054,8.76e-05,2]
[422870134,1779553843000,-453.054,8.76e-05,2]
[422870138,1779553843000,-161.58,8.767e-05,2]
[422870144,1779553843000,-500.0,8.835e-05,2]
[422870145,1779553843000,-500.0,8.835e-05,2]
[422870146,1779553843000,-500.0,8.835e-05,2]
[422870137,1779553843000,-500.0,8.767e-05,2]
[422870148,1779553843000,-500.0,8.835e-05,2]
[422870149,1779553843000,-719.46,8.835e-05,2]
[422870147,1779553843000,-500.0,8.835e-05,2]
[422870139,1779553843000,-720.0,8.776e-05,2]
[422870129,1779553843000,-330.649017,8.76e-05,2]
[422870140,1779553843000,-4902.83372715,8.797e-05,2]
[422870141,1779553843000,-500.0,8.835e-05,2]
[422870159,1779553843000,-500.0,8.933e-05,2]
[422870157,1779553843000,-1605.03,8.835e-05,2]
[422870156,1779553843000,-500.0,8.835e-05,2]
[422870153,1779553843000,-500.0,8.835e-05,2]
[422870158,1779553843000,-4537.585968,8.9e-05,2]
[422870160,1779553843000,-503.06,8.933e-05,2]
[422870152,1779553843000,-500.0,8.835e-05,2]
[422870154,1779553843000,-500.0,8.835e-05,2]
[422870150,1779553843000,-500.0,8.835e-05,2]
[422870142,1779553843000,-953.78,8.835e-05,2]
[422870143,1779553843000,-500.0,8.835e-05,2]
[422870155,1779553843000,-500.0,8.835e-05,2]
[422870226,1779553844000,-500.0,8.934e-05,2]
[422870224,1779553844000,-500.0,8.934e-05,2]
[422870234,1779553844000,-151.0,8.934e-05,2]
[422870228,1779553844000,-244.681792,8.934e-05,2]
[422870231,1779553844000,-244.681792,8.934e-05,2]
[422870229,1779553844000,-244.681792,8.934e-05,2]
[422870232,1779553844000,-500.0,8.934e-05,2]
[422870227,1779553844000,-500.0,8.934e-05,2]
[422870237,1779553844000,-431.823827,8.934e-05,2]
[422870233,1779553844000,-151.0,8.934e-05,2]
[422870230,1779553844000,-244.681792,8.934e-05,2]
[422870238,1779553844000,-431.823827,8.934e-05,2]
[422870236,1779553844000,-500.0,8.934e-05,2]
[422870242,1779553844000,-151.0,8.934e-05,2]
[422870243,1779553844000,-151.0,8.934e-05,2]
[422870240,1779553844000,-431.823827,8.934e-05,2]
[422870248,1779553844000,-500.0,8.934e-05,2]
[422870239,1779553844000,-431.823827,8.934e-05,2]
[422870246,1779553844000,-215.00241,8.934e-05,2]
[422870244,1779553844000,-215.00241,8.934e-05,2]
[422870249,1779553844000,-500.0,8.934e-05,2]
[422870247,1779553844000,-215.00241,8.934e-05,2]
[422870250,1779553844000,-500.0,8.934e-05,2]
[422870245,1779553844000,-215.00241,8.934e-05,2]
[422870251,1779553844000,-89.5533523,8.934e-05,2]
[422870259,1779553844000,-500.0,8.935e-05,2]
[422870261,1779553844000,-188.39,8.935e-05,2]
[422870225,1779553844000,-500.0,8.934e-05,2]
[422870241,1779553844000,-500.0,8.934e-05,2]
[422870215,1779553844000,-1320.46,8.934e-05,2]
[422870193,1779553844000,-500.0,8.934e-05,2]
[422870216,1779553844000,-161.743956,8.934e-05,2]
[422870252,1779553844000,-137.7910357,8.934e-05,2]
[422870192,1779553844000,-500.0,8.934e-05,2]
[422870194,1779553844000,-500.0,8.934e-05,2]
[422870196,1779553844000,-500.0,8.934e-05,2]
[422870195,1779553844000,-500.0,8.934e-05,2]
[422870197,1779553844000,-500.0,8.934e-05,2]
[422870199,1779553844000,-500.0,8.934e-05,2]
[422870201,1779553844000,-500.0,8.934e-05,2]
[422870200,1779553844000,-500.0,8.934e-05,2]
[422870203,1779553844000,-500.0,8.934e-05,2]
[422870198,1779553844000,-627.32777862,8.934e-05,2]
[422870208,1779553844000,-500.0,8.934e-05,2]
[422870202,1779553844000,-275.44,8.934e-05,2]
[422870210,1779553844000,-358.225268,8.934e-05,2]
[422870209,1779553844000,-358.225268,8.934e-05,2]
[422870205,1779553844000,-500.0,8.934e-05,2]
[422870204,1779553844000,-500.0,8.934e-05,2]
[422870207,1779553844000,-500.0,8.934e-05,2]
[422870206,1779553844000,-500.0,8.934e-05,2]
[422870212,1779553844000,-500.0,8.934e-05,2]
[422870211,1779553844000,-358.225268,8.934e-05,2]
[422870213,1779553844000,-358.225268,8.934e-05,2]
[422870223,1779553844000,-500.0,8.934e-05,2]
[422870218,1779553844000,-161.743956,8.934e-05,2]
[422870219,1779553844000,-161.743956,8.934e-05,2]
[422870220,1779553844000,-500.0,8.934e-05,2]
[422870221,1779553844000,-500.0,8.934e-05,2]
[422870222,1779553844000,-500.0,8.934e-05,2]
[422870214,1779553844000,-161.743956,8.934e-05,2]
[422870217,1779553844000,-276.17186112,8.934e-05,2]
[422870260,1779553844000,-500.0,8.935e-05,2]
[422870235,1779553844000,-151.0,8.934e-05,2]
[422870255,1779553844000,-227.344388,8.934e-05,2]
[422870290,1779553844000,-500.0,8.935e-05,2]
[422870292,1779553844000,-500.0,8.935e-05,2]
[422870291,1779553844000,-500.0,8.935e-05,2]
[422870293,1779553844000,-500.0,8.935e-05,2]
[422870294,1779553844000,-292.27867845,8.935e-05,2]
[422870297,1779553844000,-241.16465381,8.935e-05,2]
[422870298,1779553844000,-500.0,8.935e-05,2]
[422870296,1779553844000,-258.83534619,8.935e-05,2]
[422870299,1779553844000,-500.0,8.935e-05,2]
[422870312,1779553844000,-453.054,8.944e-05,2]
[422870301,1779553844000,-500.0,8.935e-05,2]
[422870313,1779553844000,-453.054,8.944e-05,2]
[422870311,1779553844000,-330.649017,8.944e-05,2]
[422870302,1779553844000,-500.0,8.935e-05,2]
[422870300,1779553844000,-501.6020872,8.935e-05,2]
[422870303,1779553844000,-500.0,8.935e-05,2]
[422870306,1779553844000,-500.0,8.935e-05,2]
[422870305,1779553844000,-500.0,8.935e-05,2]
[422870304,1779553844000,-500.0,8.935e-05,2]
[422870308,1779553844000,-330.649017,8.944e-05,2]
[422870307,1779553844000,-500.0,8.935e-05,2]
[422870309,1779553844000,-330.649017,8.944e-05,2]
[422870310,1779553844000,-330.649017,8.944e-05,2]
[422870315,1779553844000,-453.054,8.944e-05,2]
[422870316,1779553844000,-2203.0,8.996e-05,2]
[422870319,1779553844000,-475.506,8.996e-05,2]
[422870314,1779553844000,-453.054,8.944e-05,2]
[422870318,1779553844000,-175.965,8.996e-05,2]
[422870256,1779553844000,-66.1758003,8.934e-05,2]
[422870289,1779553844000,-500.0,8.935e-05,2]
[422870288,1779553844000,-500.0,8.935e-05,2]
[422870295,1779553844000,-500.0,8.935e-05,2]
[422870284,1779553844000,-500.0,8.935e-05,2]
[422870253,1779553844000,-227.344388,8.934e-05,2]
[422870254,1779553844000,-227.344388,8.934e-05,2]
[422870258,1779553844000,-679.5095997,8.934e-05,2]
[422870257,1779553844000,-435.0,8.934e-05,2]
[422870262,1779553844000,-500.0,8.935e-05,2]
[422870263,1779553844000,-500.0,8.935e-05,2]
[422870264,1779553844000,-271.53,8.935e-05,2]
[422870272,1779553844000,-500.0,8.935e-05,2]
[422870287,1779553844000,-486.89159194,8.935e-05,2]
[422870268,1779553844000,-154.26,8.935e-05,2]
[422870265,1779553844000,-33.33700129,8.935e-05,2]
[422870271,1779553844000,-500.0,8.935e-05,2]
[422870273,1779553844000,-500.0,8.935e-05,2]
[422870269,1779553844000,-197.34,8.935e-05,2]
[422870266,1779553844000,-466.66299871,8.935e-05,2]
[422870267,1779553844000,-500.0,8.935e-05,2]
[422870286,1779553844000,-500.0,8.935e-05,2]
[422870285,1779553844000,-500.0,8.935e-05,2]
[422870275,1779553844000,-443.64,8.935e-05,2]
[422870274,1779553844000,-500.0,8.935e-05,2]
[422870276,1779553844000,-500.0,8.935e-05,2]
[422870279,1779553844000,-500.0,8.935e-05,2]
[422870278,1779553844000,-500.0,8.935e-05,2]
[422870281,1779553844000,-500.0,8.935e-05,2]
[422870277,1779553844000,-631.44,8.935e-05,2]
[422870282,1779553844000,-310.08,8.935e-05,2]
[422870317,1779553844000,-246.208,8.996e-05,2]
[422870280,1779553844000,-500.0,8.935e-05,2]
[422870283,1779553844000,-250.5,8.935e-05,2]
[422870270,1779553844000,-235.68,8.935e-05,2]
[422870329,1779553845000,-500.0,8.287e-05,2]
[422870332,1779553845000,-59.24603337,9.034e-05,2]
[422870331,1779553845000,-500.0,8.835e-05,2]
[422870327,1779553845000,-47.95779466,9.034e-05,2]
[422870330,1779553845000,-500.0,8.561e-05,2]
[422870328,1779553845000,-440.75396663,9.034e-05,2]
[422870325,1779553845000,-500.0,9.034e-05,2]
[422870323,1779553845000,-150.307,9.004e-05,2]
[422870321,1779553845000,-185.0,8.996e-05,2]
[422870324,1779553845000,-500.0,9.034e-05,2]
[422870320,1779553845000,-742.0,8.996e-05,2]
[422870334,1779553845000,-500.0,9.034e-05,2]
[422870322,1779553845000,-506.129,9.004e-05,2]
[422870333,1779553845000,-500.0,9.034e-05,2]
[422870326,1779553845000,-452.04220534,9.034e-05,2]
[422870345,1779553845000,-380.36253887,9.109e-05,2]
[422870342,1779553845000,-953.78,9.109e-05,2]
[422870350,1779553845000,-239.46913038,9.109e-05,2]
[422870349,1779553845000,-19.67622751,9.109e-05,2]
[422870348,1779553845000,-480.32377249,9.109e-05,2]
[422870347,1779553845000,-500.0,9.109e-05,2]
[422870346,1779553845000,-19.67622751,9.109e-05,2]
[422870337,1779553845000,-500.0,9.041e-05,2]
[422870339,1779553845000,-500.0,9.079e-05,2]
[422870336,1779553845000,-500.0,9.041e-05,2]
[422870340,1779553845000,-334.47488661,9.109e-05,2]
[422870344,1779553845000,-99.96123362,9.109e-05,2]
[422870341,1779553845000,-165.52511339,9.109e-05,2]
[422870343,1779553845000,-500.0,9.109e-05,2]
[422870335,1779553845000,-500.0,9.037e-05,2]
[422870338,1779553845000,-992.383852,9.043e-05,2]
[422870363,1779553846000,-719.46,9.109e-05,2]
[422870366,1779553846000,-500.0,9.109e-05,2]
[422870364,1779553846000,-500.0,9.109e-05,2]
[422870367,1779553846000,-500.0,9.109e-05,2]
[422870362,1779553846000,-260.53086962,9.109e-05,2]
[422870365,1779553846000,-500.0,9.109e-05,2]
[422870369,1779553846000,-500.0,9.109e-05,2]
[422870368,1779553846000,-500.0,9.109e-05,2]
[422870361,1779553846000,-500.0,8.219e-05,2]
[422870395,1779553847000,-431.823827,9.199e-05,2]
[422870390,1779553847000,-244.681792,9.199e-05,2]
[422870391,1779553847000,-244.681789,9.199e-05,2]
[422870384,1779553847000,-161.743956,9.199e-05,2]
[422870386,1779553847000,-161.743956,9.199e-05,2]
[422870389,1779553847000,-244.681792,9.199e-05,2]
[422870388,1779553847000,-244.681792,9.199e-05,2]
[422870387,1779553847000,-161.743956,9.199e-05,2]
[422870385,1779553847000,-161.743956,9.199e-05,2]
[422870371,1779553847000,-1605.03,9.109e-05,2]
[422870375,1779553847000,-160.0,9.124e-05,2]
[422870373,1779553847000,-500.16,9.109e-05,2]
[422870379,1779553847000,-500.0,9.13e-05,2]
[422870383,1779553847000,-1496.7472284,9.199e-05,2]
[422870370,1779553847000,-510.34,9.109e-05,2]
[422870381,1779553847000,-25772.54609632,9.199e-05,2]
[422870380,1779553847000,-4942.46628417,9.176e-05,2]
[422870377,1779553847000,-298.763788,9.124e-05,2]
[422870378,1779553847000,-437.527577,9.124e-05,2]
[422870394,1779553847000,-151.0,9.199e-05,2]
[422870382,1779553847000,-1637.21180318,9.199e-05,2]
[422870396,1779553847000,-431.823827,9.199e-05,2]
[422870392,1779553847000,-151.0,9.199e-05,2]
[422870393,1779553847000,-151.0,9.199e-05,2]
[422870417,1779553847000,-500.0,9.207e-05,2]
[422870413,1779553847000,-500.0,9.207e-05,2]
[422870415,1779553847000,-500.0,9.207e-05,2]
[422870418,1779553847000,-419.59164766,9.207e-05,2]
[422870414,1779553847000,-545.02,9.207e-05,2]
[422870416,1779553847000,-500.0,9.207e-05,2]
[422870411,1779553847000,-495.73835234,9.207e-05,2]
[422870412,1779553847000,-500.0,9.207e-05,2]
[422870409,1779553847000,-500.0,9.207e-05,2]
[422870397,1779553847000,-431.823827,9.199e-05,2]
[422870410,1779553847000,-7.32164766,9.207e-05,2]
[422870405,1779553847000,-227.344388,9.199e-05,2]
[422870403,1779553847000,-215.00241,9.199e-05,2]
[422870407,1779553847000,-227.344388,9.199e-05,2]
[422870406,1779553847000,-227.344388,9.199e-05,2]
[422870404,1779553847000,-215.002411,9.199e-05,2]
[422870401,1779553847000,-215.00241,9.199e-05,2]
[422870402,1779553847000,-215.00241,9.199e-05,2]
[422870400,1779553847000,-151.0,9.199e-05,2]
[422870399,1779553847000,-151.0,9.199e-05,2]
[422870398,1779553847000,-431.823833,9.199e-05,2]
[422870408,1779553847000,-227.344388,9.199e-05,2]
[422870491,1779555032000,-321.65012,8.115e-05,2]
[422870493,1779555032000,-9246.29592061,8.118e-05,2]
[422870489,1779555032000,-455.22525267,7.314e-05,2]
[422870485,1779555032000,-3614.14654064,7.096e-05,2]
[422870487,1779555032000,-265.07328453,7.096e-05,2]
[422870483,1779555032000,-1120.78017483,7.096e-05,2]
[422870637,1779555038000,-500.0,8.116e-05,2]
[422870636,1779555038000,-500.0,8.116e-05,2]
[422870634,1779555038000,-500.0,8.116e-05,2]
[422870630,1779555038000,-500.0,8.116e-05,2]
[422870632,1779555038000,-500.0,8.116e-05,2]
[422870639,1779555038000,-500.0,8.116e-05,2]
[422870627,1779555038000,-500.0,8.116e-05,2]
[422870622,1779555038000,-500.0,8.116e-05,2]
[422870619,1779555038000,-500.0,8.116e-05,2]
[422870613,1779555038000,-500.0,8.116e-05,2]
[422870612,1779555038000,-500.0,8.116e-05,2]
[422870618,1779555038000,-500.0,8.116e-05,2]
[422870608,1779555038000,-500.0,8.116e-05,2]
[422870609,1779555038000,-500.0,8.116e-05,2]
[422870592,1779555038000,-500.0,8.116e-05,2]
[422870596,1779555038000,-500.0,8.116e-05,2]
[422870594,1779555038000,-500.0,8.116e-05,2]
[422870590,1779555038000,-5000.0,7.025e-05,2]
[422870603,1779555038000,-500.0,8.116e-05,2]
[422870601,1779555038000,-500.0,8.116e-05,2]
[422870605,1779555038000,-500.0,8.116e-05,2]
[422870599,1779555038000,-500.0,8.116e-05,2]
[422870616,1779555038000,-500.0,8.116e-05,2]
[422870641,1779555038000,-500.0,8.116e-05,2]
[422870623,1779555038000,-500.0,8.116e-05,2]
[422870649,1779555038000,-500.0,8.116e-05,2]
[422870643,1779555038000,-500.0,8.116e-05,2]
[422870682,1779555038000,-2412.0,8.118e-05,2]
[422870684,1779555038000,-1011.38839133,8.204e-05,7]
[422870676,1779555038000,-500.0,8.116e-05,2]
[422870683,1779555038000,-7334.4143752,8.118e-05,2]
[422870678,1779555038000,-500.0,8.116e-05,2]
[422870680,1779555038000,-500.0,8.116e-05,2]
[422870681,1779555038000,-16447.63791989,8.118e-05,2]
[422870665,1779555038000,-500.0,8.116e-05,2]
[422870674,1779555038000,-500.0,8.116e-05,2]
[422870672,1779555038000,-500.0,8.116e-05,2]
[422870685,1779555038000,-164.03033359,8.204e-05,2]
[422870667,1779555038000,-500.0,8.116e-05,2]
[422870668,1779555038000,-500.0,8.116e-05,2]
[422870647,1779555038000,-500.0,8.116e-05,2]
[422870645,1779555038000,-500.0,8.116e-05,2]
[422870651,1779555038000,-500.0,8.116e-05,2]
[422870655,1779555038000,-556.77155165,8.116e-05,2]
[422870653,1779555038000,-500.0,8.116e-05,2]
[422870659,1779555038000,-500.0,8.116e-05,2]
[422870663,1779555038000,-591.71899901,8.116e-05,2]
[422870661,1779555038000,-500.0,8.116e-05,2]
[422870670,1779555038000,-500.0,8.116e-05,2]
[422870657,1779555038000,-500.0,8.116e-05,2]
[422870708,1779555039000,-500.0,8.219e-05,2]
[422870705,1779555039000,-484.29,8.219e-05,2]
[422870709,1779555039000,-178.46,8.219e-05,2]
[422870702,1779555039000,-515.12,8.219e-05,2]
[422870700,1779555039000,-500.0,8.219e-05,2]
[422870711,1779555039000,-500.0,8.219e-05,2]
[422870703,1779555039000,-500.0,8.219e-05,2]
[422870701,1779555039000,-500.0,8.219e-05,2]
[422870706,1779555039000,-268.26,8.219e-05,2]
[422870710,1779555039000,-500.0,8.219e-05,2]
[422870696,1779555039000,-831.79101224,8.217e-05,2]
[422870704,1779555039000,-500.0,8.219e-05,2]
[422870699,1779555039000,-831.79101224,8.217e-05,2]
[422870688,1779555039000,-831.79101224,8.217e-05,2]
[422870707,1779555039000,-500.0,8.219e-05,2]
[422870697,1779555039000,-831.79101224,8.217e-05,2]
[422870690,1779555039000,-831.79101224,8.217e-05,2]
[422870695,1779555039000,-831.79101224,8.217e-05,2]
[422870694,1779555039000,-831.79101224,8.217e-05,2]
[422870689,1779555039000,-831.79101224,8.217e-05,2]
[422870693,1779555039000,-831.79101224,8.217e-05,2]
[422870692,1779555039000,-831.79101224,8.217e-05,2]
[422870691,1779555039000,-831.79101224,8.217e-05,2]
[422870687,1779555039000,-831.79101224,8.217e-05,2]
[422870712,1779555039000,-500.0,8.219e-05,2]
[422870686,1779555039000,-831.79101224,8.217e-05,2]
[422870698,1779555039000,-831.79101224,8.217e-05,2]
[422870722,1779555039000,-500.0,8.219e-05,2]
[422870723,1779555039000,-500.0,8.219e-05,2]
[422870713,1779555039000,-233.11830739,8.219e-05,2]
[422870742,1779555039000,-320.67525246,8.219e-05,2]
[422870740,1779555039000,-500.0,8.219e-05,2]
[422870738,1779555039000,-500.0,8.219e-05,2]
[422870741,1779555039000,-500.0,8.219e-05,2]
[422870739,1779555039000,-187.8,8.219e-05,2]
[422870721,1779555039000,-500.0,8.219e-05,2]
[422870729,1779555039000,-500.0,8.219e-05,2]
[422870728,1779555039000,-500.0,8.219e-05,2]
[422870727,1779555039000,-500.0,8.219e-05,2]
[422870730,1779555039000,-772.64,8.219e-05,2]
[422870726,1779555039000,-520.96179713,8.219e-05,2]
[422870732,1779555039000,-250.55,8.219e-05,2]
[422870735,1779555039000,-500.0,8.219e-05,2]
[422870737,1779555039000,-500.0,8.219e-05,2]
[422870733,1779555039000,-500.0,8.219e-05,2]
[422870734,1779555039000,-500.0,8.219e-05,2]
[422870724,1779555039000,-500.0,8.219e-05,2]
[422870731,1779555039000,-500.0,8.219e-05,2]
[422870725,1779555039000,-500.0,8.219e-05,2]
[422870716,1779555039000,-500.0,8.219e-05,2]
[422870718,1779555039000,-500.0,8.219e-05,2]
[422870715,1779555039000,-500.0,8.219e-05,2]
[422870719,1779555039000,-500.0,8.219e-05,2]
[422870717,1779555039000,-622.19,8.219e-05,2]
[422870714,1779555039000,-500.0,8.219e-05,2]
[422870720,1779555039000,-500.0,8.219e-05,2]
[422870736,1779555039000,-500.0,8.219e-05,2]
[422871309,1779555047000,-137.48786913,8.219e-05,2]
[422871307,1779555047000,-500.0,8.219e-05,2]
[422871303,1779555047000,-500.0,8.219e-05,2]
[422871301,1779555047000,-179.32474754,8.219e-05,2]
[422871305,1779555047000,-500.0,8.219e-05,2]